fUSD/lending_fUSD_20240214
["ID","MTS","AMOUNT","RATE_DAILY","PERIOD"]
[313989854,1707918649390,-518.96578692,0.00036712,2]
[313989855,1707918649400,-500.0,0.00036712,2]
[313989856,1707918649409,-500.0,0.00036712,2]
[313989857,1707918649419,-500.0,0.00036712,2]
[313989858,1707918649428,-918.21,0.00036712,2]
[313989859,1707918649438,-790.84,0.00036712,2]
[313989860,1707918649447,-1413.05,0.00036712,2]
[313989861,1707918649457,-1413.61,0.00036712,2]
[313989862,1707918649466,-754.17,0.00036712,2]
[313989863,1707918649477,-526.65988091,0.00036712,2]
[313989864,1707918649487,-500.0,0.00036712,2]
[313989865,1707918649496,-307.01456117,0.00036712,2]
[313989866,1707918649505,-500.0,0.00036712,2]
[313989867,1707918649515,-500.0,0.00036712,2]
[313989868,1707918649563,-500.0,0.00036712,2]
[313989869,1707918649573,-500.0,0.00036712,2]
[313989870,1707918649584,-768.11,0.00036712,2]
[313989871,1707918649594,-500.0,0.00036712,2]
[313989872,1707918649603,-500.0,0.00036712,2]
[313989873,1707918649613,-500.0,0.00036712,2]
[313989874,1707918649623,-500.0,0.00036712,2]
[313989875,1707918649777,-500.0,0.00036712,2]
[313989876,1707918649787,-500.0,0.00036712,2]
[313989877,1707918649796,-1147.8,0.00036712,2]
[313989878,1707918649807,-500.0,0.00036712,2]
[313989879,1707918649817,-884.99,0.00036712,2]
[313989880,1707918649828,-500.0,0.00036712,2]
[313989881,1707918649837,-1363.27,0.00036712,2]
[313989882,1707918649849,-192.22462468,0.00036712,2]
[313989883,1707918649859,-944.25,0.00036712,2]
[313989884,1707918649870,-500.0,0.00036712,2]
[313989885,1707918649880,-500.0,0.00036712,2]
[313989886,1707918649890,-516.45,0.00036712,2]
[313989887,1707918649899,-1338.49,0.00036712,2]
[313989888,1707918649909,-500.0,0.00036712,2]
[313989889,1707918649919,-721.42,0.00036712,2]
[313989890,1707918649928,-500.0,0.00036712,2]
[313989891,1707918649938,-500.0,0.00036712,2]
[313989892,1707918649948,-503.28707297,0.00036712,2]
[313989893,1707918649957,-1332.5,0.00036712,2]
[313989894,1707918649967,-617.74,0.00036712,2]
[313989895,1707918649982,-500.0,0.00036712,2]
[313989896,1707918649991,-500.0,0.00036712,2]
[313989897,1707918650001,-1122.42,0.00036712,2]
[313989898,1707918650010,-500.0,0.00036712,2]
[313989899,1707918650020,-500.0,0.00036712,2]
[313989900,1707918650031,-597.61549857,0.00036712,2]
[313989901,1707918650041,-500.0,0.00036712,2]
[313989902,1707918650051,-500.0,0.00036712,2]
[313989903,1707918650061,-812.15,0.00036712,2]
[313989904,1707918650072,-1122.49,0.00036712,2]
[313989905,1707918650083,-506.60007662,0.00036712,2]
[313989906,1707918650093,-2014.14,0.00036712,2]
[313989907,1707918650102,-500.0,0.00036712,2]
[313989908,1707918650113,-500.0,0.00036712,2]
[313989909,1707918650124,-993.94,0.00036712,2]
[313989910,1707918650133,-537.13306124,0.00036712,2]
[313989911,1707918650143,-500.0,0.00036712,2]
[313989912,1707918650152,-500.0,0.00036712,2]
[313989913,1707918650162,-636.6,0.00036712,2]
[313989914,1707918650172,-500.0,0.00036712,2]
[313989915,1707918650181,-500.0,0.00036712,2]
[313989916,1707918650191,-500.0,0.00036712,2]
[313989917,1707918650200,-509.51469059,0.00036712,2]
[313989918,1707918650210,-500.0,0.00036712,2]
[313989919,1707918650219,-505.8631266,0.00036712,2]
[313989920,1707918650236,-667.57,0.00036712,2]
[313989921,1707918650245,-504.7,0.00036712,2]
[313989922,1707918650255,-500.0,0.00036712,2]
[313989923,1707918650265,-500.0,0.00036712,2]
[313989924,1707918650275,-508.89164508,0.00036712,2]
[313989925,1707918650284,-513.34873233,0.00036712,30]
[313989926,1707918650293,-500.0,0.00036712,2]
[313989927,1707918650303,-500.0,0.00036712,2]
[313989928,1707918650313,-1764.29,0.00036712,2]
[313989929,1707918650322,-778.77,0.00036712,2]
[313989930,1707918650331,-2191.16,0.00036712,2]
[313989931,1707918650340,-591.81,0.00036712,2]
[313989932,1707918650350,-500.0,0.00036712,2]
[313989933,1707918650359,-500.0,0.00036712,2]
[313989934,1707918650368,-500.0,0.00036712,2]
[313989935,1707918650378,-1816.87,0.00036712,2]
[313989936,1707918650387,-796.54,0.00036712,2]
[313989937,1707918650397,-509.57,0.00036712,2]
[313989938,1707918650407,-510.03,0.00036712,2]
[313989939,1707918650417,-500.0,0.00036712,2]
[313989940,1707918650427,-711.35,0.00036712,2]
[313989941,1707918650440,-393.74324592,0.00036712,2]
[313989942,1707918650449,-500.0,0.00036712,2]
[313989943,1707918650459,-500.0,0.00036712,2]
[313989944,1707918650469,-757.25,0.00036712,2]
[313989945,1707918650481,-1499.13,0.00036712,2]
[313989946,1707918650491,-500.0,0.00036712,2]
[313989947,1707918650501,-500.0,0.00036712,2]
[313989948,1707918650510,-566.41,0.00036712,2]
[313989949,1707918650520,-706.01,0.00036712,2]
[313989950,1707918650530,-500.0,0.00036712,2]
[313989951,1707918650539,-500.0,0.00036712,2]
[313989952,1707918650549,-1377.12,0.00036712,2]
[313989953,1707918650559,-500.0,0.00036712,2]
[313989954,1707918650569,-500.0,0.00036712,2]
[313989955,1707918650579,-1227.9,0.00036712,2]
[313989956,1707918650588,-996.41,0.00036712,2]
[313989957,1707918650598,-537.39945047,0.00036712,2]
[313989958,1707918650608,-644.19,0.00036712,2]
[313989959,1707918650620,-500.0,0.00036712,2]
[313989960,1707918650629,-2029.29,0.00036712,2]
[313989961,1707918650639,-499.45119309,0.00036712,2]
[313989962,1707918650649,-508.82866843,0.00036712,2]
[313989963,1707918650658,-1069.18,0.00036712,2]
[313989964,1707918650668,-500.0,0.00036712,2]
[313989965,1707918650678,-514.5,0.00036712,2]
[313989966,1707918650687,-500.0,0.00036712,2]
[313989967,1707918650697,-1406.43,0.00036712,2]
[313989968,1707918650707,-2000.0,0.00036712,2]
[313989969,1707918650718,-507.05630985,0.00036712,2]
[313989970,1707918650728,-500.0,0.00036712,2]
[313989971,1707918650738,-1046.25,0.00036712,2]
[313989972,1707918650748,-500.0,0.00036712,2]
[313989973,1707918650758,-1134.09,0.00036712,2]
[313989974,1707918650768,-500.0,0.00036712,2]
[313989975,1707918650778,-518.82294573,0.00036712,2]
[313989976,1707918650788,-729.05,0.00036712,2]
[313989977,1707918650798,-622.27,0.00036712,2]
[313989978,1707918650807,-500.0,0.00036712,2]
[313989979,1707918650817,-500.0,0.00036712,2]
[313989980,1707918650827,-500.0,0.00036712,2]
[313989981,1707918650836,-500.0,0.00036712,2]
[313989982,1707918650846,-434.80777589,0.00036712,2]
[313989983,1707918650856,-500.0,0.00036712,2]
[313989984,1707918650866,-500.0,0.00036712,2]
[313989985,1707918650876,-500.0,0.00036712,2]
[313989986,1707918650886,-1071.7,0.00036712,2]
[313989987,1707918650896,-525.08076331,0.00036712,2]
[313989988,1707918650906,-762.21,0.00036712,2]
[313989989,1707918650915,-500.0,0.00036712,2]
[313989990,1707918650924,-509.30089643,0.00036712,2]
[313989991,1707918650934,-500.0,0.00036712,2]
[313989992,1707918650944,-500.0,0.00036712,2]
[313989993,1707918650953,-500.0,0.00036712,2]
[313989994,1707918650966,-1842.99,0.00036712,2]
[313989995,1707918650978,-517.99,0.00036712,2]
[313989996,1707918650988,-500.0,0.00036712,2]
[313989997,1707918650998,-500.0,0.00036712,2]
[313989998,1707918651008,-500.0,0.00036712,2]
[313989999,1707918651017,-500.0,0.00036712,2]
[313990000,1707918651027,-500.0,0.00036712,2]
[313990001,1707918651037,-500.0,0.00036712,2]
[313990002,1707918651047,-714.9,0.00036712,2]
[313990003,1707918651058,-500.0,0.00036712,2]
[313990004,1707918651067,-500.0,0.00036712,2]
[313990005,1707918651078,-500.0,0.00036712,2]
[313990006,1707918651088,-505.27,0.00036712,2]
[313990007,1707918651098,-500.0,0.00036712,2]
[313990008,1707918651108,-609.86,0.00036712,2]
[313990009,1707918651119,-1657.14,0.00036712,2]
[313990010,1707918651129,-500.0,0.00036712,2]
[313990011,1707918651139,-500.0,0.00036712,2]
[313990012,1707918651149,-500.0,0.00036712,2]
[313990013,1707918651159,-500.0,0.00036712,2]
[313990014,1707918651169,-500.0,0.00036712,2]
[313990015,1707918651180,-500.0,0.00036712,2]
[313990016,1707918651190,-1211.81,0.00036712,2]
[313990017,1707918651200,-500.0,0.00036712,2]
[313990018,1707918651211,-500.0,0.00036712,2]
[313990019,1707918651221,-512.01817763,0.00036712,2]
[313990020,1707918651234,-466.1365239,0.00036712,2]
[313990021,1707918651245,-500.0,0.00036712,2]
[313990022,1707918651255,-500.0,0.00036712,2]
[313990023,1707918651265,-500.0,0.00036712,2]
[313990024,1707918651276,-521.97,0.00036712,2]
[313990025,1707918651287,-500.0,0.00036712,2]
[313990026,1707918651297,-500.0,0.00036712,2]
[313990027,1707918651309,-516.05140764,0.00036712,2]
[313990028,1707918651319,-500.0,0.00036712,2]
[313990029,1707918651328,-1086.38,0.00036712,2]
[313990030,1707918651339,-500.0,0.00036712,2]
[313990031,1707918651350,-500.0,0.00036712,2]
[313990032,1707918651361,-636.91,0.00036712,2]
[313990033,1707918651371,-1000.0,0.00036712,7]
[313990034,1707918651381,-500.0,0.00036712,2]
[313990035,1707918651392,-500.0,0.00036712,2]
[313990036,1707918651403,-500.0,0.00036712,2]
[313990037,1707918651414,-500.0,0.00036712,2]
[313990038,1707918651426,-590.73,0.00036712,2]
[313990039,1707918651436,-500.0,0.00036712,2]
[313990040,1707918651447,-500.0,0.00036712,2]
[313990041,1707918651457,-846.95,0.00036712,2]
[313990042,1707918651468,-500.0,0.00036712,2]
[313990043,1707918651481,-510.53732483,0.00036712,2]
[313990044,1707918651491,-500.0,0.00036712,2]
[313990045,1707918651500,-500.0,0.00036712,2]
[313990046,1707918651510,-500.0,0.00036712,2]
[313990047,1707918651523,-500.0,0.00036712,2]
[313990048,1707918651534,-500.0,0.00036712,2]
[313990049,1707918651546,-500.0,0.00036712,2]
[313990050,1707918651557,-500.0,0.00036712,2]
[313990051,1707918651567,-551.44,0.00036712,2]
[313990052,1707918651578,-608.15,0.00036712,2]
[313990053,1707918651588,-545.12256583,0.00036712,2]
[313990054,1707918651598,-445.69400902,0.00036712,2]
[313990055,1707918651610,-500.0,0.00036712,2]
[313990056,1707918651624,-512.8909975,0.00036712,2]
[313990057,1707918651634,-500.0,0.00036712,2]
[313990058,1707918651646,-232.88117125,0.00036712,2]
[313990059,1707918651657,-511.39375667,0.00036712,2]
[313990060,1707918651667,-709.47,0.00036712,2]
[313990061,1707918651678,-500.0,0.00036712,2]
[313990062,1707918651687,-524.06,0.00036712,2]
[313990063,1707918651699,-797.65,0.00036712,2]
[313990064,1707918651709,-500.0,0.00036712,2]
[313990065,1707918651719,-500.0,0.00036712,2]
[313990066,1707918651731,-500.0,0.00036712,2]
[313990067,1707918651741,-640.14,0.00036712,2]
[313990068,1707918651752,-500.0,0.00036712,2]
[313990069,1707918651762,-236.04978591,0.00036712,2]
[313990070,1707918651773,-500.0,0.00036712,2]
[313990071,1707918651784,-500.0,0.00036712,2]
[313990072,1707918651794,-500.0,0.00036712,2]
[313990073,1707918651804,-500.0,0.00036712,2]
[313990074,1707918651815,-610.3,0.00036712,2]
[313990075,1707918651826,-789.73,0.00036712,2]
[313990076,1707918651836,-500.0,0.00036712,2]
[313990077,1707918651846,-500.0,0.00036712,2]
[313990078,1707918651857,-500.0,0.00036712,2]
[313990079,1707918651868,-903.49,0.00036712,2]
[313990080,1707918651879,-650.72,0.00036712,2]
[313990081,1707918651890,-500.0,0.00036712,2]
[313990082,1707918651900,-500.0,0.00036712,2]
[313990083,1707918651913,-500.0,0.00036712,2]
[313990084,1707918651923,-500.0,0.00036712,2]
[313990085,1707918651933,-500.0,0.00036712,2]
[313990086,1707918651943,-500.0,0.00036712,2]
[313990087,1707918651953,-500.0,0.00036712,2]
[313990088,1707918651963,-500.0,0.00036712,2]
[313990089,1707918651974,-500.0,0.00036712,2]
[313990090,1707918651984,-500.0,0.00036712,2]
[313990091,1707918651994,-500.0,0.00036712,2]
[313990092,1707918652004,-500.0,0.00036712,2]
[313990093,1707918652014,-2051.57,0.00036712,2]
[313990094,1707918652023,-500.0,0.00036712,2]
[313990095,1707918652034,-845.58,0.00036712,2]
[313990096,1707918652045,-500.0,0.00036712,2]
[313990097,1707918652055,-500.0,0.00036712,2]
[313990098,1707918652066,-500.0,0.00036712,2]
[313990099,1707918652228,-1484.98,0.00036712,2]
[313990100,1707918652238,-882.95,0.00036712,2]
[313990101,1707918652247,-500.0,0.00036712,2]
[313990102,1707918652257,-500.0,0.00036712,2]
[313990103,1707918652269,-500.0,0.00036712,2]
[313990104,1707918652279,-500.0,0.00036712,2]
[313990105,1707918652289,-500.0,0.00036712,2]
[313990106,1707918652299,-500.0,0.00036712,2]
[313990107,1707918652308,-496.22615354,0.00036712,2]
[313990108,1707918652317,-500.0,0.00036712,2]
[313990109,1707918652327,-1266.63,0.00036712,2]
[313990110,1707918652337,-500.0,0.00036712,2]
[313990111,1707918652347,-500.0,0.00036712,2]
[313990112,1707918652358,-750.02,0.00036712,2]
[313990113,1707918652368,-725.91,0.00036712,2]
[313990114,1707918652378,-500.0,0.00036712,2]
[313990115,1707918652388,-676.49,0.00036712,2]
[313990116,1707918652398,-500.0,0.00036712,2]
[313990117,1707918652408,-1189.99,0.00036712,2]
[313990118,1707918652418,-995.85,0.00036712,2]
[313990119,1707918652428,-500.0,0.00036712,2]
[313990120,1707918652438,-500.0,0.00036712,2]
[313990121,1707918652449,-504.25637114,0.00036712,2]
[313990122,1707918652460,-1392.58,0.00036712,2]
[313990123,1707918652469,-1081.42,0.00036712,2]
[313990124,1707918652481,-545.48,0.00036712,2]
[313990125,1707918652491,-521.37862516,0.00036712,2]
[313990126,1707918652501,-4833.85,0.00036712,2]
[313990127,1707918652511,-500.0,0.00036712,2]
[313990128,1707918652521,-258.96,0.00036712,2]
[313990129,1707918652531,-500.0,0.00036712,2]
[313990130,1707918652540,-500.0,0.00036712,2]
[313990131,1707918652550,-5617.47,0.00036712,2]
[313990132,1707918652560,-508.15365145,0.00036712,2]
[313990133,1707918652571,-500.0,0.00036712,2]
[313990134,1707918652582,-874.25,0.00036712,2]
[313990135,1707918652592,-654.98,0.00036712,2]
[313990136,1707918652601,-543.07962717,0.00036712,2]
[313990137,1707918652612,-500.0,0.00036712,2]
[313990138,1707918652624,-567.3920446,0.00036712,2]
[313990139,1707918652634,-500.0,0.00036712,2]
[313990140,1707918652643,-500.0,0.00036712,2]
[313990141,1707918652653,-678.96,0.00036712,2]
[313990142,1707918652663,-500.0,0.00036712,2]
[313990143,1707918652673,-1141.89,0.00036712,2]
[313990144,1707918652682,-500.0,0.00036712,2]
[313990145,1707918652692,-509.92421235,0.00036712,2]
[313990146,1707918652702,-519.19030628,0.00036712,2]
[313990147,1707918652714,-500.0,0.00036712,2]
[313990148,1707918652725,-530.39,0.00036712,2]
[313990149,1707918652735,-500.0,0.00036712,2]
[313990150,1707918652745,-500.0,0.00036712,2]
[313990151,1707918652755,-500.0,0.00036712,2]
[313990152,1707918652765,-500.0,0.00036712,2]
[313990153,1707918652775,-500.0,0.00036712,2]
[313990154,1707918652786,-11536.61,0.00036712,2]
[313990155,1707918652796,-500.0,0.00036712,2]
[313990156,1707918652806,-500.0,0.00036712,2]
[313990157,1707918652815,-500.0,0.00036712,2]
[313990158,1707918652827,-517.23,0.00036712,2]
[313990159,1707918652837,-500.0,0.00036712,2]
[313990160,1707918652847,-500.0,0.00036712,2]
[313990161,1707918652857,-500.0,0.00036712,2]
[313990162,1707918652867,-500.0,0.00036712,2]
[313990163,1707918652877,-755.03,0.00036712,2]
[313990164,1707918652886,-524.61309514,0.00036712,2]
[313990165,1707918652897,-500.0,0.00036712,2]
[313990166,1707918652907,-500.0,0.00036712,2]
[313990167,1707918652917,-500.0,0.00036712,2]
[313990168,1707918652928,-211.53207368,0.00036712,2]
[313990169,1707918652938,-826.33,0.00036712,2]
[313990170,1707918652948,-521.50766613,0.00036712,2]
[313990171,1707918652957,-11052.97,0.00036712,2]
[313990172,1707918652967,-512.60858467,0.00036712,2]
[313990173,1707918652977,-844.03,0.00036712,2]
[313990174,1707918652986,-500.0,0.00036712,2]
[313990175,1707918652995,-6593.78,0.00036712,2]
[313990176,1707918653005,-500.0,0.00036712,2]
[313990177,1707918653015,-495.18305771,0.00036712,2]
[313990178,1707918653024,-518.65,0.00036712,2]
[313990179,1707918653033,-500.0,0.00036712,2]
[313990180,1707918653043,-500.0,0.00036712,2]
[313990181,1707918653054,-500.0,0.00036712,2]
[313990182,1707918653063,-500.0,0.00036712,2]
[313990183,1707918653073,-1107.9,0.00036712,2]
[313990184,1707918653082,-500.0,0.00036712,2]
[313990185,1707918653091,-500.0,0.00036712,2]
[313990186,1707918653101,-1675.75,0.00036712,2]
[313990187,1707918653111,-500.0,0.00036712,2]
[313990188,1707918653121,-604.60200285,0.00036712,2]
[313990189,1707918653132,-500.0,0.00036712,2]
[313990190,1707918653141,-500.38664645,0.00036712,30]
[313990191,1707918653151,-500.0,0.00036712,2]
[313990192,1707918653161,-500.0,0.00036712,2]
[313990193,1707918653170,-500.0,0.00036712,2]
[313990194,1707918653180,-500.0,0.00036712,2]
[313990195,1707918653189,-535.28135826,0.00036712,2]
[313990196,1707918653198,-439.91475458,0.00036712,2]
[313990197,1707918653208,-500.0,0.00036712,2]
[313990198,1707918653218,-500.0,0.00036712,2]
[313990199,1707918653228,-589.43,0.00036712,2]
[313990200,1707918653238,-500.0,0.00036712,2]
[313990201,1707918653247,-577.93,0.00036712,2]
[313990202,1707918653257,-500.0,0.00036712,2]
[313990203,1707918653267,-832.53,0.00036712,2]
[313990204,1707918653277,-500.0,0.00036712,2]
[313990205,1707918653288,-440.64981345,0.00036712,2]
[313990206,1707918653299,-939.6,0.00036712,2]
[313990207,1707918653309,-731.74,0.00036712,2]
[313990208,1707918653318,-500.0,0.00036712,2]
[313990209,1707918653328,-618.79,0.00036712,2]
[313990210,1707918653340,-459.96159318,0.00036712,2]
[313990211,1707918653353,-702.08,0.00036712,2]
[313990212,1707918653364,-500.0,0.00036712,2]
[313990213,1707918653376,-500.0,0.00036712,2]
[313990214,1707918653387,-500.0,0.00036712,2]
[313990215,1707918653397,-500.0,0.00036712,2]
[313990216,1707918653407,-1511.48,0.00036712,2]
[313990217,1707918653418,-480.88401517,0.00036712,2]
[313990218,1707918653428,-500.0,0.00036712,2]
[313990219,1707918653438,-500.0,0.00036712,2]
[313990220,1707918653447,-503.80535867,0.00036712,2]
[313990221,1707918653458,-1556.11,0.00036712,2]
[313990222,1707918653468,-500.0,0.00036712,2]
[313990223,1707918653479,-525.66,0.00036712,2]
[313990224,1707918653489,-500.0,0.00036712,2]
[313990225,1707918653500,-635.32,0.00036712,2]
[313990226,1707918653510,-500.0,0.00036712,2]
[313990227,1707918653520,-730.57,0.00036712,2]
[313990228,1707918653534,-694.15,0.00036712,2]
[313990229,1707918653545,-542.52175579,0.00036712,2]
[313990230,1707918653555,-500.0,0.00036712,2]
[313990231,1707918653565,-500.0,0.00036712,2]
[313990232,1707918653576,-216.44585838,0.00036712,2]
[313990233,1707918653587,-500.0,0.00036712,2]
[313990234,1707918653598,-512.15,0.00036712,2]
[313990235,1707918653608,-500.0,0.00036712,2]
[313990236,1707918653620,-500.0,0.00036712,2]
[313990237,1707918653631,-4300.1,0.00036712,2]
[313990238,1707918653641,-500.0,0.00036712,2]
[313990239,1707918653652,-553.65,0.00036712,2]
[313990240,1707918653663,-797.14,0.00036712,2]
[313990241,1707918653673,-500.0,0.00036712,2]
[313990242,1707918653684,-1107.84,0.00036712,2]
[313990243,1707918653695,-1367.49,0.00036712,2]
[313990244,1707918653705,-500.0,0.00036712,2]
[313990245,1707918653715,-2703.32,0.00036712,2]
[313990246,1707918653726,-500.0,0.00036712,2]
[313990247,1707918653735,-1628.57,0.00036712,2]
[313990248,1707918653746,-500.0,0.00036712,2]
[313990249,1707918653756,-500.0,0.00036712,2]
[313990250,1707918653767,-500.0,0.00036712,2]
[313990251,1707918653777,-1290.42,0.00036712,2]
[313990252,1707918653789,-500.0,0.00036712,2]
[313990253,1707918653799,-572.56,0.00036712,2]
[313990254,1707918653810,-583.05657652,0.00036712,2]
[313990255,1707918653820,-533.6354017,0.00036712,2]
[313990256,1707918653831,-500.0,0.00036712,2]
[313990257,1707918653842,-2835.77,0.00036712,2]
[313990258,1707918653852,-500.0,0.00036712,2]
[313990259,1707918653861,-554.15627324,0.00036712,2]
[313990260,1707918653870,-500.0,0.00036712,2]
[313990261,1707918653880,-1120.47,0.00036712,2]
[313990262,1707918653891,-500.0,0.00036712,2]
[313990263,1707918653901,-517.14,0.00036712,2]
[313990264,1707918653911,-500.0,0.00036712,2]
[313990265,1707918653920,-1443.05,0.00036712,2]
[313990266,1707918653929,-4292.73,0.00036712,2]
[313990267,1707918653939,-490.67813144,0.00036712,2]
[313990268,1707918653949,-786.93,0.00036712,2]
[313990269,1707918653959,-1168.95,0.00036712,2]
[313990270,1707918653969,-500.0,0.00036712,2]
[313990271,1707918653979,-500.0,0.00036712,2]
[313990272,1707918653989,-500.0,0.00036712,2]
[313990273,1707918653999,-1720.24,0.00036712,2]
[313990274,1707918654009,-500.0,0.00036712,2]
[313990275,1707918654018,-775.06,0.00036712,2]
[313990276,1707918654027,-1074.02,0.00036712,2]
[313990277,1707918654036,-512.51159234,0.00036712,2]
[313990278,1707918654046,-500.0,0.00036712,2]
[313990279,1707918654055,-550.37917464,0.00036712,2]
[313990280,1707918654064,-500.0,0.00036712,2]
[313990281,1707918654073,-1078.87,0.00036712,2]
[313990282,1707918654082,-500.0,0.00036712,2]
[313990283,1707918654091,-5058.48,0.00036712,2]
[313990284,1707918654100,-500.0,0.00036712,2]
[313990285,1707918654109,-500.0,0.00036712,2]
[313990286,1707918654119,-766.12,0.00036712,2]
[313990287,1707918654128,-500.0,0.00036712,2]
[313990288,1707918654137,-500.0,0.00036712,2]
[313990289,1707918654146,-500.0,0.00036712,2]
[313990290,1707918654155,-12071.62,0.00036712,2]
[313990291,1707918654164,-500.0,0.00036712,2]
[313990292,1707918654173,-662.79,0.00036712,2]
[313990293,1707918654182,-1066.1,0.00036712,2]
[313990294,1707918654191,-500.0,0.00036712,2]
[313990295,1707918654200,-500.0,0.00036712,2]
[313990296,1707918654210,-500.0,0.00036712,2]
[313990297,1707918654219,-2904.57,0.00036712,2]
[313990298,1707918654230,-500.0,0.00036712,2]
[313990299,1707918654239,-500.0,0.00036712,2]
[313990300,1707918654248,-500.0,0.00036712,2]
[313990301,1707918654258,-500.0,0.00036712,2]
[313990302,1707918654266,-500.0,0.00036712,2]
[313990303,1707918654275,-500.0,0.00036712,2]
[313990304,1707918654412,-782.3,0.00036712,2]
[313990305,1707918654421,-500.0,0.00036712,2]
[313990306,1707918654430,-1683.81,0.00036712,2]
[313990307,1707918654439,-500.0,0.00036712,2]
[313990308,1707918654448,-1071.21,0.00036712,2]
[313990309,1707918654457,-502.98,0.00036712,2]
[313990310,1707918654467,-500.0,0.00036712,2]
[313990311,1707918654477,-505.54543461,0.00036712,2]
[313990312,1707918654487,-500.0,0.00036712,2]
[313990313,1707918654496,-4434.9,0.00036712,2]
[313990314,1707918654506,-577.72526009,0.00036712,2]
[313990315,1707918654515,-501.61,0.00036712,2]
[313990316,1707918654524,-500.0,0.00036712,2]
[313990317,1707918654534,-1703.61,0.00036712,2]
[313990318,1707918654543,-500.0,0.00036712,2]
[313990319,1707918654551,-524.03025684,0.00036712,2]
[313990320,1707918654561,-1473.33,0.00036712,2]
[313990321,1707918654570,-4728.84,0.00036712,2]
[313990322,1707918654579,-5888.22,0.00036712,2]
[313990323,1707918654589,-520.65,0.00036712,2]
[313990324,1707918654598,-599.5,0.00036712,2]
[313990325,1707918654607,-500.0,0.00036712,2]
[313990326,1707918654619,-758.6,0.00036712,2]
[313990327,1707918654629,-500.0,0.00036712,2]
[313990328,1707918654639,-2346.52,0.00036712,2]
[313990329,1707918654648,-597.23,0.00036712,2]
[313990330,1707918654658,-500.0,0.00036712,2]
[313990331,1707918654668,-812.43,0.00036712,2]
[313990332,1707918654677,-1129.6,0.00036712,2]
[313990333,1707918654686,-26483.9,0.00036712,2]
[313990334,1707918654696,-500.0,0.00036712,2]
[313990335,1707918654705,-500.0,0.00036712,2]
[313990336,1707918654715,-15190.55,0.00036712,2]
[313990337,1707918654725,-6954.93,0.00036712,2]
[313990338,1707918654735,-500.0,0.00036712,2]
[313990339,1707918654743,-500.0,0.00036712,2]
[313990340,1707918654753,-500.0,0.00036712,2]
[313990341,1707918654762,-500.0,0.00036712,2]
[313990342,1707918654772,-3242.2,0.00036712,2]
[313990343,1707918654780,-500.0,0.00036712,2]
[313990344,1707918654790,-500.0,0.00036712,2]
[313990345,1707918654799,-457.63541515,0.00036712,2]
[313990346,1707918654809,-500.0,0.00036712,2]
[313990347,1707918654818,-500.0,0.00036712,2]
[313990348,1707918654828,-559.19,0.00036712,2]
[313990349,1707918654837,-974.31,0.00036712,2]
[313990350,1707918654847,-500.0,0.00036712,2]
[313990351,1707918654856,-500.0,0.00036712,2]
[313990352,1707918654865,-2133.28,0.00036712,2]
[313990353,1707918654874,-514.29013616,0.00036712,2]